fUSD/lending_fUSD_20250521
["ID","MTS","AMOUNT","RATE_DAILY","PERIOD"]
[361857955,1747846251894,-420.0,0.00038356,30]
[361857956,1747846251905,-551.02,0.00038356,30]
[361857957,1747846251915,-420.0,0.00038356,30]
[361857958,1747846251927,-420.0,0.00038356,30]
[361857959,1747846251937,-420.0,0.00038356,30]
[361857960,1747846251947,-420.0,0.00038356,30]
[361857961,1747846251958,-427.2,0.00038356,30]
[361857962,1747846251970,-420.0,0.00038356,30]
[361857963,1747846251981,-420.0,0.00038356,30]
[361857964,1747846251991,-544.22,0.00038356,30]
[361857965,1747846252001,-420.0,0.00038356,30]
[361857966,1747846252013,-721.77,0.00038356,30]
[361857967,1747846252023,-273.02519117,0.00038356,30]
[361857968,1747846252033,-420.0,0.00038356,30]
[361857969,1747846252043,-420.0,0.00038356,30]
[361857970,1747846252052,-497.9,0.00038356,30]
[361857971,1747846252063,-420.0,0.00038356,30]
[361857972,1747846252072,-420.0,0.00038356,30]
[361857973,1747846252083,-793.68,0.00038356,30]
[361857974,1747846252093,-868.61,0.00038356,30]
[361857975,1747846252340,-420.0,0.00038356,30]
[361857976,1747846252352,-248.98967858,0.00038356,30]
[361857977,1747846252362,-330.79685165,0.00038356,30]
[361857978,1747846252371,-473.14855659,0.00038356,30]
[361857979,1747846252381,-420.0,0.00038356,30]
[361857980,1747846252391,-695.42,0.00038356,30]
[361857981,1747846252401,-524.07,0.00038356,30]
[361857982,1747846252411,-420.0,0.00038356,14]
[361857983,1747846252421,-435.94854535,0.00038356,30]
[361857984,1747846252431,-420.0,0.00038356,30]
[361857985,1747846252441,-420.0,0.00038356,30]
[361857986,1747846252450,-521.65,0.00038356,30]
[361857987,1747846252460,-420.0,0.00038356,30]
[361857988,1747846252470,-420.0,0.00038356,30]
[361857989,1747846252479,-565.65,0.00038356,30]
[361857990,1747846252497,-452.91,0.00038356,30]
[361857991,1747846252512,-881.21,0.00038356,30]
[361857992,1747846252524,-420.0,0.00038356,30]
[361857993,1747846252534,-420.0,0.00038356,30]
[361857994,1747846252544,-495.03,0.00038356,30]
[361857995,1747846252554,-600.28,0.00038356,30]
[361857996,1747846252563,-420.0,0.00038356,30]
[361857997,1747846252574,-558.12,0.00038356,30]
[361857998,1747846252583,-420.0,0.00038356,30]
[361857999,1747846252593,-420.0,0.00038356,30]
[361858000,1747846252603,-420.0,0.00038356,30]
[361858001,1747846252613,-1072.59,0.00038356,30]
[361858002,1747846252623,-420.0,0.00038356,30]
[361858003,1747846252633,-420.0,0.00038356,30]
[361858004,1747846252642,-420.0,0.00038356,30]
[361858005,1747846252652,-509.37,0.00038356,30]
[361858006,1747846252662,-2000.0,0.00038356,30]
[361858007,1747846252671,-797.13,0.00038356,30]
[361858008,1747846252681,-420.0,0.00038356,30]
[361858009,1747846252692,-742.9,0.00038356,30]
[361858010,1747846252701,-541.17,0.00038356,30]
[361858011,1747846252711,-420.0,0.00038356,30]
[361858012,1747846252721,-455.73,0.00038356,30]
[361858013,1747846252731,-577.47,0.00038356,30]
[361858014,1747846252741,-420.0,0.00038356,30]
[361858015,1747846252751,-640.52,0.00038356,30]
[361858016,1747846252764,-420.0,0.00038356,30]
[361858017,1747846252774,-470.51,0.00038356,30]
[361858018,1747846252784,-420.0,0.00038356,30]
[361858019,1747846252794,-420.0,0.00038356,30]
[361858020,1747846252805,-687.59,0.00038356,30]
[361858021,1747846252816,-420.0,0.00038356,30]
[361858022,1747846252826,-1030.46,0.00038356,30]
[361858023,1747846252837,-420.0,0.00038356,30]
[361858024,1747846252847,-420.0,0.00038356,30]
[361858025,1747846252857,-746.08,0.00038356,30]
[361858026,1747846252866,-551.36,0.00038356,30]
[361858027,1747846252877,-420.0,0.00038356,30]
[361858028,1747846252890,-890.37,0.00038356,30]
[361858029,1747846252900,-420.0,0.00038356,30]
[361858030,1747846252910,-783.39,0.00038356,30]
[361858031,1747846252920,-420.0,0.00038356,30]
[361858032,1747846252931,-420.0,0.00038356,30]
[361858033,1747846252941,-300.0,0.00038356,30]
[361858034,1747846252951,-1114.82,0.00038356,30]
[361858035,1747846252963,-1104.18,0.00038356,30]
[361858036,1747846252974,-666.3,0.00038356,30]
[361858037,1747846252984,-836.66,0.00038356,30]
[361858038,1747846252994,-420.0,0.00038356,30]
[361858039,1747846253005,-451.67,0.00038356,30]
[361858040,1747846253015,-420.0,0.00038356,30]
[361858041,1747846253026,-599.69,0.00038356,30]
[361858042,1747846253036,-924.47,0.00038356,30]
[361858043,1747846253046,-677.68,0.00038356,30]
[361858044,1747846253056,-1511.72,0.00038356,30]
[361858045,1747846253067,-420.0,0.00038356,30]
[361858046,1747846253077,-709.92,0.00038356,30]
[361858047,1747846253087,-745.36,0.00038356,30]
[361858048,1747846253098,-811.42,0.00038356,30]
[361858049,1747846253108,-420.0,0.00038356,30]
[361858050,1747846253118,-467.92,0.00038356,30]
[361858051,1747846253128,-420.0,0.00038356,30]
[361858052,1747846253139,-823.1,0.00038356,30]
[361858053,1747846253149,-420.0,0.00038356,30]
[361858054,1747846253161,-420.0,0.00038356,30]
[361858055,1747846253171,-420.0,0.00038356,30]
[361858056,1747846253181,-420.0,0.00038356,30]
[361858057,1747846253192,-420.0,0.00038356,30]
[361858058,1747846253202,-420.0,0.00038356,30]
[361858059,1747846253212,-420.0,0.00038356,30]
[361858060,1747846253222,-420.0,0.00038356,2]
[361858061,1747846253232,-420.0,0.00038356,30]
[361858062,1747846253247,-420.0,0.00038356,30]
[361858063,1747846253272,-420.0,0.00038356,30]
[361858064,1747846253294,-289.40653219,0.00038356,30]
[361858065,1747846254638,-737.52346781,0.00038356,30]
[361858066,1747846254648,-420.0,0.00038356,30]
[361858067,1747846254658,-401.79345271,0.00038356,30]
[361858068,1747846254668,-423.53473447,0.00038356,30]
[361858069,1747846254678,-420.0,0.00038356,30]
[361858070,1747846254688,-827.06,0.00038356,30]
[361858071,1747846254697,-420.0,0.00038356,30]
[361858072,1747846254706,-442.80750221,0.00038356,30]
[361858073,1747846254716,-1113.13,0.00038356,30]
[361858074,1747846254725,-420.0,0.00038356,30]
[361858075,1747846254736,-420.0,0.00038356,30]
[361858076,1747846254745,-578.01,0.00038356,30]
[361858077,1747846254757,-686.48,0.00038356,30]
[361858078,1747846254767,-420.0,0.00038356,30]
[361858079,1747846254776,-420.0,0.00038356,30]
[361858080,1747846254786,-547.73,0.00038356,30]
[361858081,1747846254796,-871.83,0.00038356,30]
[361858082,1747846254806,-420.0,0.00038356,30]
[361858083,1747846254815,-420.0,0.00038356,30]
[361858084,1747846254824,-420.0,0.00038356,30]
[361858085,1747846254835,-420.0,0.00038356,30]
[361858086,1747846254845,-812.69,0.00038356,30]
[361858087,1747846254855,-420.0,0.00038356,30]
[361858088,1747846254864,-420.0,0.00038356,30]
[361858089,1747846254874,-420.0,0.00038356,30]
[361858090,1747846254888,-420.0,0.00038356,30]
[361858091,1747846254898,-420.0,0.00038356,30]
[361858092,1747846254909,-420.0,0.00038356,30]
[361858093,1747846254918,-420.0,0.00038356,30]
[361858094,1747846254929,-1897.7,0.00038356,30]
[361858095,1747846254939,-1038.35,0.00038356,30]
[361858096,1747846254949,-420.0,0.00038356,30]
[361858097,1747846254959,-381.08936438,0.00038356,30]
[361858098,1747846254969,-762.15,0.00038356,30]
[361858099,1747846254978,-420.0,0.00038356,30]
[361858100,1747846254988,-420.0,0.00038356,30]
[361858101,1747846254998,-420.0,0.00038356,30]
[361858102,1747846255010,-420.0,0.00038356,30]
[361858103,1747846255020,-420.0,0.00038356,30]
[361858104,1747846255029,-507.08007316,0.00038356,30]
[361858105,1747846255039,-781.44,0.00038356,30]
[361858106,1747846255050,-1069.47,0.00038356,30]
[361858107,1747846255059,-420.0,0.00038356,30]
[361858108,1747846255070,-420.0,0.00038356,30]
[361858109,1747846255080,-154.67783989,0.00038356,30]
[361858110,1747846255091,-503.55,0.00038356,30]
[361858111,1747846255101,-420.0,0.00038356,30]
[361858112,1747846255111,-420.0,0.00038356,30]
[361858113,1747846255121,-288.91192142,0.00038356,30]
[361858114,1747846255131,-826.5,0.00038356,30]
[361858115,1747846255141,-1107.68,0.00038356,30]
[361858116,1747846255151,-420.0,0.00038356,30]
[361858117,1747846255161,-664.49,0.00038356,30]
[361858118,1747846255171,-679.21,0.00038356,30]
[361858119,1747846255181,-4867.6,0.00038356,30]
[361858120,1747846255191,-453.84,0.00038356,30]
[361858121,1747846255200,-420.0,0.00038356,30]
[361858122,1747846255210,-576.01,0.00038356,30]
[361858123,1747846255220,-420.0,0.00038356,30]
[361858124,1747846255230,-420.0,0.00038356,30]
[361858125,1747846255240,-420.0,0.00038356,30]
[361858126,1747846255249,-420.0,0.00038356,30]
[361858127,1747846255261,-420.0,0.00038356,30]
[361858128,1747846255270,-420.0,0.00038356,30]
[361858129,1747846255279,-420.0,0.00038356,30]
[361858130,1747846255289,-540.08,0.00038356,30]
[361858131,1747846255300,-420.0,0.00038356,30]
[361858132,1747846255310,-420.0,0.00038356,30]
[361858133,1747846255320,-525.52,0.00038356,30]
[361858134,1747846255329,-420.0,0.00038356,30]
[361858135,1747846255339,-400.14758049,0.00038356,30]
[361858136,1747846255349,-420.0,0.00038356,30]
[361858137,1747846255358,-2616.67,0.00038356,30]
[361858138,1747846255368,-420.0,0.00038356,30]
[361858139,1747846255378,-445.04,0.00038356,30]
[361858140,1747846255387,-885.38,0.00038356,30]
[361858141,1747846255397,-420.0,0.00038356,30]
[361858142,1747846255407,-497.17,0.00038356,30]
[361858143,1747846255416,-420.0,0.00038356,30]
[361858144,1747846255426,-1737.53,0.00038356,30]
[361858145,1747846255435,-420.0,0.00038356,30]
[361858146,1747846255444,-420.0,0.00038356,30]
[361858147,1747846255454,-420.0,0.00038356,30]
[361858148,1747846255463,-803.42,0.00038356,30]
[361858149,1747846255472,-436.7,0.00038356,30]
[361858150,1747846255482,-420.0,0.00038356,30]
[361858151,1747846255491,-420.0,0.00038356,30]
[361858152,1747846255501,-184.83793239,0.00038356,30]
[361858153,1747846255532,-66.77782355,0.00038356,30]
[361858154,1747846255541,-1154.97,0.00038356,30]
[361858155,1747846255550,-420.0,0.00038356,30]
[361858156,1747846255560,-420.0,0.00038356,30]
[361858157,1747846255569,-420.0,0.00038356,30]
[361858158,1747846255578,-532.89,0.00038356,30]
[361858159,1747846255588,-420.0,0.00038356,30]
[361858160,1747846255597,-3026.69,0.00038356,30]
[361858161,1747846255606,-981.3,0.00038356,30]
[361858162,1747846255616,-420.0,0.00038356,30]
[361858163,1747846255625,-420.0,0.00038356,30]
[361858164,1747846255635,-420.0,0.00038356,30]
[361858165,1747846255645,-420.0,0.00038356,30]
[361858166,1747846255655,-420.0,0.00038356,30]
[361858167,1747846255664,-420.0,0.00038356,30]
[361858168,1747846255674,-420.0,0.00038356,30]
[361858169,1747846255684,-420.0,0.00038356,30]
[361858170,1747846255693,-402.0026501,0.00038356,30]
[361858171,1747846255703,-420.0,0.00038356,2]
[361858172,1747846255713,-871.22,0.00038356,30]
[361858173,1747846255723,-420.0,0.00038356,30]
[361858174,1747846255732,-966.34,0.00038356,30]
[361858175,1747846255742,-420.0,0.00038356,30]
[361858176,1747846255752,-816.4,0.00038356,30]
[361858177,1747846255764,-420.0,0.00038356,30]
[361858178,1747846255774,-420.0,0.00038356,30]
[361858179,1747846255784,-877.65,0.00038356,30]
[361858180,1747846255793,-448.97623004,0.00038356,30]
[361858181,1747846255803,-804.49,0.00038356,30]
[361858182,1747846255813,-420.0,0.00038356,30]
[361858183,1747846255823,-412.18045079,0.00038356,30]
[361858184,1747846255833,-420.0,0.00038356,30]
[361858185,1747846255842,-856.38,0.00038356,30]
[361858186,1747846255852,-420.0,0.00038356,30]
[361858187,1747846255862,-420.0,0.00038356,30]
[361858188,1747846255872,-420.0,0.00038356,30]
[361858189,1747846255883,-420.0,0.00038356,30]
[361858190,1747846255897,-420.0,0.00038356,30]
[361858191,1747846255907,-1681.98,0.00038356,30]
[361858192,1747846255917,-314.09584553,0.00038356,30]
[361858193,1747846255931,-105.90415447,0.00038356,30]
[361858194,1747846255941,-420.0,0.00038356,30]
[361858195,1747846255952,-63.03584553,0.00038356,30]
[361858196,1747846255965,-297.3219665,0.00038356,30]
[361858197,1747846255981,-59.64218797,0.00038356,30]
[361858198,1747846255991,-420.0,0.00038356,30]
[361858199,1747846256001,-420.0,0.00038356,30]
[361858200,1747846256012,-499.02615878,0.00038356,30]
[361858201,1747846256022,-452.64,0.00038356,30]
[361858202,1747846256031,-605.68,0.00038356,30]
[361858203,1747846256041,-420.0,0.00038356,30]
[361858204,1747846256051,-654.77,0.00038356,30]
[361858205,1747846256061,-420.0,0.00038356,30]
[361858206,1747846256071,-420.0,0.00038356,30]
[361858207,1747846256080,-420.0,0.00038356,30]
[361858208,1747846256090,-456.75710009,0.00038356,30]
[361858209,1747846256100,-645.7,0.00038356,30]
[361858210,1747846256110,-420.0,0.00038356,30]
[361858211,1747846256119,-420.0,0.00038356,30]
[361858212,1747846256129,-1105.48,0.00038356,30]
[361858213,1747846256139,-420.0,0.00038356,30]
[361858214,1747846256149,-4367.10455316,0.00038356,30]
[361858218,1747846443743,200.0,0.00022275,117]
[361858234,1747846695176,-156.57,0.00013699,2]
[361858235,1747846695206,-250.0,0.00015068,2]
[361858236,1747846695235,-200.0,0.00022064,2]
[361858237,1747846695264,-200.0,0.00023593,2]
[361858239,1747847304572,356.61,0.00025,10]
[361858242,1747847372602,-200.0,0.00028979,117]
[361858243,1747847372630,-200.0,0.00028979,117]
[361858246,1747847402431,157.29,0.00013699,2]
[361858247,1747847404543,200.0,0.0002875,117]
[361858258,1747847431523,-168.56,0.0002852,2]
[361858259,1747847431534,-146.5,0.00028979,2]
[361858260,1747847431546,-40.34477702,0.00028979,2]
[361858261,1747847431556,-200.0,0.00029602,117]
[361858262,1747847431567,-859.59868521,0.000302,2]
[361858263,1747847431576,-500.0,0.00030466,2]
[361858264,1747847431586,-250.0,0.00030852,2]
[361858265,1747847431596,-250.0,0.0003103,2]
[361858266,1747847431606,-200.0,0.00031372,117]
[361858267,1747847431616,-200.0,0.00031877,117]
[361858268,1747847431626,-200.0,0.00031877,117]
[361858269,1747847431635,-152.98653759,0.00033467,2]
[361858270,1747847431645,-300.41,0.00033495,2]
[361858271,1747847431655,-156.61,0.000335,31]
[361858272,1747847431665,-205.0,0.00035295,2]
[361858273,1747847431674,-150.0,0.00035559,2]
[361858274,1747847431684,-155.0,0.000356,120]
[361858275,1747847431694,-150.0,0.000357,2]
[361858276,1747847431703,-150.99,0.000357,30]
[361858277,1747847431714,-4084.02,0.000357,10]
[361858278,1747847431723,-156.61,0.000357,31]
[361858279,1747847431733,-156.61,0.000357,31]
[361858280,1747847431742,-1084.43,0.00035717,2]
[361858281,1747847431754,-165.16,0.00035822,2]
[361858282,1747847431763,-209.24510509,0.000359,33]
[361858283,1747847431773,-250.0,0.00035901,2]
[361858284,1747847431783,-23900.0,0.00035916,2]
[361858285,1747847431792,-150.0,0.00035971,2]
[361858286,1747847431802,-800.56,0.00035971,2]
[361858287,1747847431812,-1500.0,0.00035976,2]
[361858288,1747847431822,-166.53,0.00036055,2]
[361858289,1747847431832,-1157.74,0.00036149,120]
[361858290,1747847431842,-500.0,0.00036151,2]
[361858291,1747847431852,-1000.0,0.00036544,2]
[361858293,1747847431862,-200.0,0.00036587,2]
[361858295,1747847431872,-1000.0,0.00037061,7]
[361858297,1747847431881,-759.0221717,0.00037062,2]
[361858299,1747847431891,-166.18,0.00037102,2]
[361858301,1747847431900,-759.0221717,0.00037294,2]
[361858303,1747847431910,-205.0,0.00037354,6]
[361858305,1747847431920,-165.16,0.00037528,2]
[361858307,1747847431930,-400.0,0.000376,13]
[361858309,1747847431939,-759.0221717,0.00037605,2]
[361858311,1747847431949,-800.0,0.000377,13]
[361858313,1747847431959,-1300.0,0.000378,13]
[361858315,1747847431969,-161.24069101,0.000378,2]
[361858317,1747847431978,-353.35,0.00037808,2]
[361858319,1747847431988,-458.59,0.00037808,2]
[361858322,1747847432000,-340.61,0.00037808,2]
[361858324,1747847432010,-162.8,0.00037808,2]
[361858326,1747847432020,-162.8,0.00037808,2]
[361858328,1747847432030,-162.8,0.00037808,2]
[361858330,1747847432040,-162.8,0.00037808,2]
[361858332,1747847432049,-162.8,0.00037808,2]
[361858334,1747847432059,-162.8,0.00037808,2]
[361858336,1747847432068,-150.0,0.00037808,2]
[361858338,1747847432078,-150.34,0.00037808,2]
[361858340,1747847432088,-150.34,0.00037808,2]
[361858342,1747847432098,-150.34,0.00037808,2]
[361858344,1747847432107,-150.0,0.00037808,2]
[361858345,1747847432117,-150.0,0.00037808,2]
[361858347,1747847432127,-300.64,0.00037808,2]
[361858349,1747847432138,-170.1,0.00037808,2]
[361858352,1747847432148,-150.34,0.00037808,2]
[361858354,1747847432157,-214.21685264,0.0003787,2]
[361858356,1747847432167,-151.73,0.0003787,2]
[361858358,1747847432177,-151.73,0.0003787,2]
[361858360,1747847432187,-151.73,0.0003787,2]
[361858362,1747847432197,-151.73,0.0003787,2]
[361858364,1747847432207,-151.73,0.0003787,2]
[361858365,1747847432216,-151.73,0.0003787,2]
[361858367,1747847432227,-151.73,0.0003787,2]
[361858369,1747847432237,-151.73,0.0003787,2]
[361858372,1747847432249,-151.73,0.0003787,2]
[361858374,1747847432258,-151.73,0.0003787,2]
[361858376,1747847432268,-151.73,0.0003787,2]
[361858377,1747847432278,-151.73,0.0003787,2]
[361858379,1747847432288,-151.73,0.0003787,2]
[361858381,1747847432301,-151.73,0.0003787,2]
[361858383,1747847432311,-151.73,0.0003787,2]
[361858385,1747847432320,-151.73,0.0003787,2]
[361858387,1747847432331,-151.73,0.0003787,2]
[361858389,1747847432341,-151.73,0.0003787,2]
[361858391,1747847432351,-151.73,0.0003787,2]
[361858393,1747847432360,-151.73,0.0003787,2]
[361858395,1747847432371,-151.73,0.0003787,2]
[361858397,1747847432381,-151.73,0.0003787,2]
[361858399,1747847432391,-151.73,0.0003787,2]
[361858401,1747847432401,-151.73,0.0003787,2]
[361858403,1747847432410,-151.73,0.0003787,2]
[361858405,1747847432420,-151.73,0.0003787,2]
[361858407,1747847432429,-151.73,0.0003787,2]
[361858409,1747847432439,-151.73,0.0003787,2]
[361858411,1747847432448,-151.73,0.0003787,2]
[361858413,1747847432458,-151.73,0.0003787,2]
[361858415,1747847432468,-125.16541543,0.0003787,2]
[361858417,1747847432482,-26.56458457,0.0003787,2]
[361858419,1747847432492,-151.73,0.0003787,2]
[361858421,1747847432505,-151.73,0.0003787,2]
[361858423,1747847432514,-151.73,0.0003787,2]
[361858425,1747847432524,-151.73,0.0003787,2]
[361858427,1747847432534,-150.35,0.0003787,2]
[361858429,1747847432544,-151.73,0.0003787,2]
[361858431,1747847432554,-151.73,0.0003787,2]
[361858433,1747847432565,-151.73,0.0003787,2]
[361858435,1747847432575,-150.35,0.0003787,2]
[361858437,1747847432586,-151.73,0.0003787,2]
[361858439,1747847432596,-151.73,0.0003787,2]
[361858441,1747847432605,-150.35,0.0003787,2]
[361858443,1747847432615,-151.73,0.0003787,2]
[361858445,1747847432625,-151.73,0.0003787,2]
[361858447,1747847432635,-151.73,0.0003787,2]
[361858449,1747847432646,-150.35,0.0003787,2]
[361858451,1747847432656,-151.73,0.0003787,2]
[361858453,1747847432667,-151.73,0.0003787,2]
[361858455,1747847432679,-151.73,0.0003787,2]
[361858457,1747847432691,-151.73,0.0003787,2]
[361858459,1747847432701,-151.73,0.0003787,2]
[361858461,1747847432711,-151.73,0.0003787,2]
[361858463,1747847432722,-151.73,0.0003787,2]
[361858465,1747847432732,-151.73,0.0003787,2]
[361858467,1747847432742,-1012.43402122,0.00037873,7]
[361858469,1747847432756,-100528.87748287,0.0003788,30]
[361858472,1747847432775,-23903.41134011,0.0003788,30]
[361858476,1747847432803,-27331.389,0.0003788,30]
[361858479,1747847432824,-4831.29373375,0.0003788,30]
[361858482,1747847432847,-6545.56799999,0.0003788,30]
[361858573,1747847437468,-6972.4587271,0.000378,2]
[361858574,1747847437479,-585.67687256,0.000378,44]
[361858575,1747847437489,-161.240691,0.0003785,2]
[361858576,1747847437500,-250.54503067,0.00037879,15]
[361858577,1747847437513,-500.0,0.00037879,15]
[361858578,1747847437524,-176.09655521,0.00037879,15]
[361858579,1747847437534,-185.84410759,0.00037879,15]
[361858580,1747847437545,-500.0,0.00037879,15]
[361858581,1747847437557,-209668.13801585,0.0003788,7]
[361858582,1747847437569,-12386.08169714,0.0003788,7]
[361858583,1747847437582,-609.51914805,0.0003788,7]
[361858584,1747847437730,-4423.47880346,0.0003788,7]
[361858585,1747847437743,-2286.40368,0.0003788,7]
[361858586,1747847437788,-2590.0,0.0003788,7]
[361858587,1747847437799,-1274.48,0.0003788,7]
[361858588,1747847437812,-1380.72,0.0003788,7]
[361858589,1747847437824,-2433.0,0.0003788,7]
[361858595,1747847439674,-1400.43904,0.0003788,7]
[361858596,1747847439885,-28800.0,0.0003788,7]
[361858597,1747847439898,-857.50000015,0.0003788,7]
[361858599,1747847440684,-1941.80999021,0.0003788,7]
[361858606,1747847442707,-500.0,0.00037879,15]
[361858607,1747847442717,-279.35154255,0.00037879,15]
[361858608,1747847442728,-58.61625786,0.00037879,7]
[361858609,1747847442740,-441.38374214,0.00037879,7]
[361858610,1747847442750,-500.0,0.00037879,7]
[361858611,1747847442762,-500.0,0.00037879,7]
[361858612,1747847442772,-500.0,0.00037879,15]
[361858613,1747847442782,-500.0,0.00037879,7]
[361858614,1747847442792,-500.0,0.00037879,7]
[361858615,1747847442802,-500.0,0.00037879,15]
[361858616,1747847442812,-500.0,0.00037879,7]
[361858617,1747847442822,-420.08664194,0.00037879,7]
[361858618,1747847442832,-430.0,0.00037879,15]
[361858619,1747847442843,-500.0,0.00037879,7]
[361858620,1747847442855,-500.0,0.00037879,15]
[361858621,1747847442869,-500.0,0.00037879,7]
[361858622,1747847442879,-500.0,0.00037879,7]
[361858623,1747847442888,-500.0,0.00037879,7]
[361858624,1747847442898,-500.0,0.00037879,7]
[361858625,1747847442908,-500.0,0.00037879,7]
[361858626,1747847442918,-500.0,0.00037879,7]
[361858627,1747847442928,-500.0,0.00037879,7]
[361858628,1747847442938,-500.0,0.00037879,7]
[361858629,1747847442947,-56866.17871865,0.0003788,7]
[361858631,1747847442959,-25186.3396482,0.0003788,7]
[361858632,1747847442980,-450.17991328,0.0003788,7]
[361858633,1747847442991,-399822.93865971,0.0003788,7]
[361858634,1747847443002,-270878.99810664,0.0003788,30]
[361858635,1747847443030,-1616.49669456,0.0003788,30]
[361858636,1747847443042,-288.63858982,0.0003788,30]
[361858637,1747847443054,-37404.73084977,0.0003788,30]
[361858638,1747847443066,-863.95,0.0003788,30]
[361858639,1747847443082,-477.18634439,0.0003788,30]
[361858640,1747847443106,-6831.34179056,0.0003788,30]
[361858661,1747847445388,-909.55000001,0.0003788,30]
[361858662,1747847445492,-545.8867975,0.0003788,30]
[361858663,1747847445505,-8954.49626137,0.0003788,30]
[361858664,1747847445520,-514.7142,0.0003788,30]
[361858665,1747847445547,-9810.5828,0.0003788,30]
[361858666,1747847445559,-205663.30331333,0.0003788,30]
[361858667,1747847445571,-10708.4087677,0.0003788,30]
[361858668,1747847445600,-101480.99844911,0.0003788,30]
[361858669,1747847445612,-878.98034062,0.0003788,30]
[361858670,1747847445624,-31701.22,0.0003788,30]
[361858671,1747847445635,-18225.77629069,0.0003788,30]
[361858672,1747847445663,-503.11277023,0.0003788,30]
[361858690,1747848015567,250.0,0.00015,2]
[361858691,1747848016685,300.0,0.00017,2]
[361858692,1747848017726,350.0,0.00019,2]
[361858693,1747848309127,116972.96,0.00012,2]
[361858694,1747848309170,50000.0,0.00012,2]
[361858695,1747848310901,-217.25474752,0.00012,2]
[361858696,1747848312709,-217.25474752,0.00012,2]
[361858697,1747848315205,-151.76029635,0.00012,2]
[361858698,1747848317273,-217.41760271,0.00012,2]
[361858700,1747848332359,300.0,0.00011999,2]
[361858703,1747848422041,150.0,0.00011999,2]
[361858705,1747848435232,1000.0,0.00011999,2]
[361858708,1747848454137,300.0,0.000115,4]
[361858709,1747848456224,600.0,0.000116,4]
[361858710,1747848458521,900.0,0.000117,4]
[361858711,1747848460432,1200.0,0.000118,4]
[361858712,1747848462523,550.0,0.000119,4]
[361858713,1747848462555,950.0,0.000119,4]
[361858714,1747848510804,-186.68430415,0.00011999,2]
[361858715,1747848513412,-226.23444383,0.00011999,2]
[361858716,1747848515662,-236.6342652,0.00011999,2]
[361858718,1747848518119,-173.15398828,0.00011999,2]
[361858719,1747848521769,-271.11299854,0.00011999,2]
[361858720,1747848526548,260.09506745,0.000107,2]
[361858725,1747848549693,17787.0544632,0.000119,2]
[361858727,1747848566988,293.32760959,0.000119,2]
[361858728,1747848568129,-55.73301318,0.00011999,2]
[361858729,1747848568161,-206.21525092,0.00011999,2]
[361858730,1747848568185,-292.73634552,0.00011999,2]
[361858731,1747848568213,-643.37536168,0.00011999,2]
[361858732,1747848568240,-3747.0273787,0.00012,2]
[361858733,1747848601804,1200.0,0.00011999,2]
[361858734,1747848606625,162.27684846,0.000119,2]
[361858765,1747848631711,-391.86503,0.00012,2]
[361858766,1747848631727,-5546.22131031,0.00012,2]
[361858767,1747848631739,-10700.0,0.00012,2]